[Event "44th Chess Olympiad Women 2022"]
[Site "Chennai"]
[Date "2022.07.29"]
[Round "1.42"]
[White "Martynkova, Olena"]
[Black "Nepando, Jolly"]
[Result "1-0"]
[WhiteElo "2213"]
[BlackElo "1389"]
[Annotator "ChessBase"]
[PlyCount "69"]
[EventDate "2022.??.??"]
[TimeControl "60"]

1. d4 {[%emt 0:00:05]} d5 {[%emt 0:00:37]} 2. c4 {[%emt 0:00:23]} e6 {[%emt 0:
00:00]} 3. Nf3 {[%emt 0:00:41]} Nc6 {[%emt 0:06:00]} 4. Nc3 {[%emt 0:03:37]}
Nf6 {[%emt 0:03:48]} 5. Bg5 {[%emt 0:03:06]} Be7 {[%emt 0:02:11]} 6. e3 {
[%emt 0:01:47]} b6 {[%emt 0:06:04]} 7. cxd5 {[%emt 0:13:30]} Nxd5 {[%emt 0:00:
00]} 8. Bb5 {[%emt 0:05:12]} Bd7 {[%emt 0:02:55]} 9. Nxd5 {[%emt 0:01:49]} exd5
{[%emt 0:00:33]} 10. Qa4 {[%emt 0:02:32]} Nb8 {[%emt 0:05:55]} 11. Bxe7 {
[%emt 0:02:07]} Qxe7 {[%emt 0:01:02]} 12. Ne5 {[%emt 0:01:04]} a6 {[%emt 0:00:
00]} 13. Nxd7 {[%emt 0:03:14]} Nxd7 {[%emt 0:02:00]} 14. Bc6 {[%emt 0:03:12]}
Ra7 {[%emt 0:04:02]} 15. O-O {[%emt 0:07:33]} Qe6 {[%emt 0:04:19]} 16. Rac1 {
[%emt 0:02:39]} Kd8 {[%emt 0:09:03]} 17. Qb3 {[%emt 0:07:38]} Nf6 {[%emt 0:00:
00]} 18. a4 {[%emt 0:02:13]} Ke7 {[%emt 0:01:10]} 19. f3 {[%emt 0:04:14]} Rd8 {
[%emt 0:00:57]} 20. a5 {[%emt 0:03:20]} b5 {[%emt 0:03:07]} 21. Qa3+ {[%emt 0:
00:00]} Qd6 {[%emt 0:04:33]} 22. Rc5 {[%emt 0:02:59]} Nd7 {[%emt 0:03:45]} 23.
Rxd5 {[%emt 0:02:16]} Qxa3 {[%emt 0:01:40]} 24. bxa3 {[%emt 0:00:11]} Nb8 {
[%emt 0:01:38]} 25. Rxd8 {[%emt 0:00:54]} Kxd8 {[%emt 0:00:02]} 26. Rc1 {
[%emt 0:01:12]} Ke7 {[%emt 0:00:48]} 27. e4 {[%emt 0:01:19]} f6 {[%emt 0:00:09]
} 28. h4 {[%emt 0:01:20]} Kd6 {[%emt 0:00:01]} 29. d5 {[%emt 0:02:51]} Nd7 {
[%emt 0:02:30]} 30. Bxd7 {[%emt 0:00:17]} Kxd7 {[%emt 0:00:02]} 31. Rc6 {
[%emt 0:00:35]} Kc8 {[%emt 0:02:03]} 32. h5 {[%emt 0:00:52]} Kb7 {[%emt 0:00:
00]} 33. h6 {[%emt 0:00:27]} g6 {[%emt 0:02:09]} 34. Rxf6 {[%emt 0:00:18]} Ra8
{[%emt 0:00:05]} 35. Rf7 {[%emt 0:00:00]} 1-0

[Event "44th Chess Olympiad Women 2022"]
[Site "Chennai"]
[Date "2022.07.29"]
[Round "1.42"]
[White "Sibajeva, Marija"]
[Black "Beukes Jamie-Nicole"]
[Result "1-0"]
[WhiteElo "2032"]
[BlackElo "1231"]
[Annotator "NA RC"]
[PlyCount "65"]
[EventDate "2022.??.??"]
[TimeControl "60"]

1. e4 {[%emt 0:00:03]} c5 {[%emt 0:00:15]} 2. Nf3 {[%emt 0:00:05]} e6 {[%emt 0:
00:00]} 3. d4 {[%emt 0:00:03]} cxd4 {[%emt 0:00:06]} 4. Nxd4 {[%emt 0:00:03]}
Nc6 {[%emt 0:00:14]} 5. Nc3 {[%emt 0:01:37]} Qc7 {[%emt 0:00:41]} 6. Be3 {
[%emt 0:01:06]} a6 {[%emt 0:00:27]} 7. Qd2 {[%emt 0:01:49]} Nf6 {[%emt 0:03:08]
} 8. f3 {[%emt 0:02:45]} Be7 {[%emt 0:02:30]} 9. O-O-O {[%emt 0:00:32]} O-O {
[%emt 0:02:32]} 10. g4 {[%emt 0:00:57]} b5 {[%emt 0:13:44]} 11. Be2 {[%emt 0:
00:00]} Bb7 {[%emt 0:06:58]} 12. g5 {[%emt 0:05:06]} Ne8 {[%emt 0:04:46]} 13.
Nb3 {[%emt 0:03:33]} d6 {[%emt 0:17:44]} 14. f4 {[%emt 0:03:16]} Rd8 {[%emt 0:
00:00]} 15. Rhg1 {[%emt 0:01:25]} Ba8 {[%emt 0:07:18]} 16. f5 {[%emt 0:01:57]}
Rc8 {[%emt 0:14:47]} 17. Bg4 {[%emt 0:04:43]} exf5 {[%emt 0:04:40]} 18. Nd5 {
[%emt 0:01:24]} Qb8 {[%emt 0:02:03]} 19. Bxf5 {[%emt 0:03:09]} Rd8 {[%emt 0:00:
00]} 20. Bb6 {[%emt 0:00:34]} Ne5 {[%emt 0:00:11]} 21. Bxd8 {[%emt 0:00:26]}
Bxd8 {[%emt 0:00:25]} 22. Rg3 {[%emt 0:07:02]} Bb7 {[%emt 0:02:03]} 23. Qe2 {
[%emt 0:02:29]} g6 {[%emt 0:01:00]} 24. Bh3 {[%emt 0:00:59]} Ng7 {[%emt 0:00:
00]} 25. Nf6+ {[%emt 0:00:24]} Kh8 {[%emt 0:00:52]} 26. Bg4 {[%emt 0:04:27]}
Nxg4 {[%emt 0:00:33]} 27. Qxg4 {[%emt 0:00:55]} Bc8 {[%emt 0:00:38]} 28. Qh4 {
[%emt 0:01:05]} Bxf6 {[%emt 0:00:18]} 29. gxf6 {[%emt 0:00:05]} Nh5 {[%emt 0:
00:00]} 30. Rgd3 {[%emt 0:00:45]} Bb7 {[%emt 0:00:52]} 31. Rxd6 {[%emt 0:00:18]
} Re8 {[%emt 0:00:39]} 32. Nc5 {[%emt 0:00:22]} Qa8 {[%emt 0:00:24]} 33. Nxb7 {
[%emt 0:01:10]} 1-0

[Event "44th Chess Olympiad Women 2022"]
[Site "Chennai"]
[Date "2022.07.29"]
[Round "1.42"]
[White "Tsuses, Patience"]
[Black "Simkunaite, Gabija"]
[Result "0-1"]
[WhiteElo "1075"]
[BlackElo "2010"]
[Annotator "NA RC"]
[PlyCount "92"]
[EventDate "2022.??.??"]
[TimeControl "60"]

1. e4 {[%emt 0:00:03]} c6 {[%emt 0:00:18]} 2. d4 {[%emt 0:00:30]} d5 {[%emt 0:
00:00]} 3. Nc3 {[%emt 0:01:39]} dxe4 {[%emt 0:00:30]} 4. Nxe4 {[%emt 0:04:05]}
Nf6 {[%emt 0:00:18]} 5. Nxf6+ {[%emt 0:04:32]} exf6 {[%emt 0:00:05]} 6. Nf3 {
[%emt 0:09:16]} Bg4 {[%emt 0:00:45]} 7. Be2 {[%emt 0:01:04]} Bd6 {[%emt 0:00:
00]} 8. Be3 {[%emt 0:10:07]} O-O {[%emt 0:02:06]} 9. h3 {[%emt 0:00:51]} Bh5 {
[%emt 0:03:19]} 10. g4 {[%emt 0:04:46]} Bg6 {[%emt 0:00:05]} 11. Bd3 {[%emt 0:
00:00]} Re8 {[%emt 0:08:56]} 12. Qd2 {[%emt 0:08:05]} Bf4 {[%emt 0:05:03]} 13.
O-O-O {[%emt 0:02:11]} Bxe3 {[%emt 0:00:13]} 14. fxe3 {[%emt 0:00:57]} Qd5 {
[%emt 0:00:08]} 15. Bxg6 {[%emt 0:12:25]} hxg6 {[%emt 0:00:09]} 16. Nh2 {
[%emt 0:05:07]} Qxa2 {[%emt 0:00:55]} 17. c3 {[%emt 0:07:47]} Nd7 {[%emt 0:00:
00]} 18. Rhe1 {[%emt 0:11:30]} Nb6 {[%emt 0:03:07]} 19. Qc2 {[%emt 0:01:03]}
Nc4 {[%emt 0:02:00]} 20. Nf1 {[%emt 0:00:41]} a5 {[%emt 0:01:17]} 21. Qb1 {
[%emt 0:03:31]} Qxb1+ {[%emt 0:05:09]} 22. Kxb1 {[%emt 0:00:03]} f5 {[%emt 0:
00:00]} 23. b3 {[%emt 0:02:27]} Nd6 {[%emt 0:00:27]} 24. Ng3 {[%emt 0:01:15]}
fxg4 {[%emt 0:00:17]} 25. hxg4 {[%emt 0:00:26]} Ne4 {[%emt 0:00:09]} 26. Nxe4 {
[%emt 0:00:29]} Rxe4 {[%emt 0:00:06]} 27. g5 {[%emt 0:00:34]} Rae8 {[%emt 0:00:
00]} 28. Rd2 {[%emt 0:02:07]} Rxe3 {[%emt 0:01:47]} 29. Rxe3 {[%emt 0:00:22]}
Rxe3 {[%emt 0:00:05]} 30. Kc2 {[%emt 0:00:12]} Kf8 {[%emt 0:06:13]} 31. Rg2 {
[%emt 0:00:23]} b5 {[%emt 0:01:31]} 32. Kd2 {[%emt 0:00:40]} Rf3 {[%emt 0:00:
00]} 33. Kc2 {[%emt 0:00:34]} Ke7 {[%emt 0:00:54]} 34. Re2+ {[%emt 0:01:00]}
Kd7 {[%emt 0:00:17]} 35. Re5 {[%emt 0:00:08]} Rf5 {[%emt 0:00:53]} 36. Re2 {
[%emt 0:03:16]} Rxg5 {[%emt 0:00:07]} 37. Rh2 {[%emt 0:00:44]} Rh5 {[%emt 0:00:
00]} 38. Rf2 {[%emt 0:00:24]} f6 {[%emt 0:00:17]} 39. Rf3 {[%emt 0:00:33]} g5 {
[%emt 0:00:23]} 40. Kd3 {[%emt 0:00:09]} g4 {[%emt 0:00:09]} 41. Rf4 {[%emt 0:
00:00]} f5 {[%emt 0:30:43]} 42. c4 {[%emt 0:00:51]} Rh3+ {[%emt 0:00:48]} 43.
Kd2 {[%emt 0:00:00]} Rf3 {[%emt 0:00:00]} 44. Rxf3 {[%emt 0:00:00]} gxf3 {
[%emt 0:00:00]} 45. cxb5 {[%emt 0:00:00]} cxb5 {[%emt 0:00:00]} 46. Ke3 {
[%emt 0:00:00]} a4 {[%emt 0:00:00]} 0-1

[Event "44th Chess Olympiad Women 2022"]
[Site "Chennai"]
[Date "2022.07.29"]
[Round "1.42"]
[White "Van Wyk, Keisha C"]
[Black "Baginskaite, Kamile"]
[Result "0-1"]
[WhiteElo "1237"]
[BlackElo "2134"]
[Annotator "NA"]
[PlyCount "70"]
[EventDate "2022.??.??"]
[TimeControl "60"]

1. e4 {[%emt 0:00:15]} c5 {[%emt 0:00:08]} 2. Nf3 {[%emt 0:00:18]} d6 {[%emt 0:
00:00]} 3. d4 {[%emt 0:01:04]} cxd4 {[%emt 0:00:07]} 4. Nxd4 {[%emt 0:00:18]}
Nf6 {[%emt 0:00:06]} 5. Nc3 {[%emt 0:00:56]} a6 {[%emt 0:00:06]} 6. Be3 {
[%emt 0:02:24]} e5 {[%emt 0:03:25]} 7. Nf3 {[%emt 0:04:35]} Qc7 {[%emt 0:00:44]
} 8. Bd3 {[%emt 0:01:57]} b5 {[%emt 0:01:17]} 9. Nd5 {[%emt 0:09:24]} Nxd5 {
[%emt 0:02:00]} 10. exd5 {[%emt 0:04:02]} Be7 {[%emt 0:00:08]} 11. Ng5 {
[%emt 0:07:36]} Bxg5 {[%emt 0:09:31]} 12. Bxg5 {[%emt 0:01:39]} f5 {[%emt 0:00:
00]} 13. O-O {[%emt 0:02:35]} O-O {[%emt 0:00:37]} 14. Rc1 {[%emt 0:03:20]} Nd7
{[%emt 0:01:07]} 15. c4 {[%emt 0:04:57]} b4 {[%emt 0:02:47]} 16. Qc2 {[%emt 0:
00:00]} Nc5 {[%emt 0:18:10]} 17. Be2 {[%emt 0:03:07]} f4 {[%emt 0:03:20]} 18.
f3 {[%emt 0:06:47]} Bf5 {[%emt 0:01:20]} 19. Qd2 {[%emt 0:03:00]} a5 {[%emt 0:
00:00]} 20. Bh4 {[%emt 0:04:33]} Rae8 {[%emt 0:01:01]} 21. g3 {[%emt 0:04:04]}
Bh3 {[%emt 0:08:05]} 22. Rf2 {[%emt 0:01:53]} e4 {[%emt 0:02:45]} 23. Rg2 {
[%emt 0:09:26]} Bxg2 {[%emt 0:10:16]} 24. Kxg2 {[%emt 0:00:20]} exf3+ {[%emt 0:
00:00]} 25. Bxf3 {[%emt 0:00:43]} Re3 {[%emt 0:00:49]} 26. gxf4 {[%emt 0:05:06]
} Rd3 {[%emt 0:01:09]} 27. Qe2 {[%emt 0:02:47]} Rxf4 {[%emt 0:00:11]} 28. Bg4 {
[%emt 0:01:38]} Rdd4 {[%emt 0:07:36]} 29. Qe8+ {[%emt 0:03:19]} Rf8 {[%emt 0:
00:00]} 30. Qh5 {[%emt 0:01:25]} g6 {[%emt 0:03:31]} 31. Qg5 {[%emt 0:01:03]}
Qf7 {[%emt 0:01:14]} 32. Re1 {[%emt 0:01:16]} h6 {[%emt 0:00:44]} 33. Qxh6 {
[%emt 0:00:52]} Rxg4+ {[%emt 0:00:08]} 34. Kh3 {[%emt 0:00:23]} Qf5 {[%emt 0:
00:00]} 35. Re7 {[%emt 0:00:27]} Rf4+ {[%emt 0:01:18]} 0-1

[Event "44th Chess Olympiad Women 2022"]
[Site "Chennai"]
[Date "2022.07.29"]
[Round "1.43"]
[White "Dejanovic, Tereza"]
[Black "Shih, Ching-An"]
[Result "1-0"]
[WhiteElo "2011"]
[BlackElo "1582"]
[Annotator "NA RC"]
[PlyCount "89"]
[EventDate "2022.??.??"]
[TimeControl "60"]

1. e4 {[%emt 0:00:01]} e5 {[%emt 0:00:16]} 2. Nf3 {[%emt 0:00:05]} Nc6 {
[%emt 0:00:05]} 3. Bb5 {[%emt 0:00:07]} a6 {[%emt 0:00:14]} 4. Ba4 {[%emt 0:00:
00]} Nf6 {[%emt 0:00:39]} 5. O-O {[%emt 0:00:20]} d6 {[%emt 0:00:36]} 6. Re1 {
[%emt 0:00:09]} Be7 {[%emt 0:00:07]} 7. c3 {[%emt 0:00:08]} O-O {[%emt 0:00:27]
} 8. h3 {[%emt 0:00:19]} b5 {[%emt 0:01:57]} 9. Bc2 {[%emt 0:00:12]} Bb7 {
[%emt 0:05:21]} 10. d4 {[%emt 0:09:39]} Re8 {[%emt 0:03:42]} 11. Nbd2 {[%emt 0:
00:00]} Bf8 {[%emt 0:03:13]} 12. a4 {[%emt 0:03:59]} exd4 {[%emt 0:04:20]} 13.
cxd4 {[%emt 0:04:43]} Nb4 {[%emt 0:00:18]} 14. Bb1 {[%emt 0:00:13]} c5 {
[%emt 0:00:44]} 15. d5 {[%emt 0:03:29]} g6 {[%emt 0:03:01]} 16. Nf1 {[%emt 0:
00:00]} Bg7 {[%emt 0:00:09]} 17. Qb3 {[%emt 0:03:31]} bxa4 {[%emt 0:04:53]} 18.
Qxa4 {[%emt 0:08:26]} Qd7 {[%emt 0:01:30]} 19. N1d2 {[%emt 0:02:56]} Qb5 {
[%emt 0:02:50]} 20. Qb3 {[%emt 0:04:08]} a5 {[%emt 0:11:05]} 21. Qa4 {[%emt 0:
00:00]} Qa6 {[%emt 0:02:13]} 22. Ra3 {[%emt 0:16:08]} c4 {[%emt 0:06:15]} 23.
Nf1 {[%emt 0:00:43]} Bc8 {[%emt 0:02:05]} 24. Bd2 {[%emt 0:01:31]} Bd7 {
[%emt 0:00:05]} 25. Qd1 {[%emt 0:00:08]} Qb7 {[%emt 0:01:45]} 26. Bc3 {[%emt 0:
00:00]} Bb5 {[%emt 0:07:05]} 27. Ng3 {[%emt 0:06:14]} Nd7 {[%emt 0:03:24]} 28.
Bxg7 {[%emt 0:03:44]} Kxg7 {[%emt 0:00:05]} 29. Qd2 {[%emt 0:01:24]} Nc5 {
[%emt 0:01:36]} 30. Qg5 {[%emt 0:01:49]} Qd7 {[%emt 0:14:44]} 31. Nh5+ {
[%emt 0:01:11]} Kf8 {[%emt 0:00:08]} 32. Nf6 {[%emt 0:00:36]} Qd8 {[%emt 0:00:
00]} 33. Qh6+ {[%emt 0:02:47]} Ke7 {[%emt 0:00:06]} 34. Nxe8 {[%emt 0:00:17]}
Kxe8 {[%emt 0:01:40]} 35. Qxh7 {[%emt 0:04:17]} Ncd3 {[%emt 0:00:29]} 36. Bxd3
{[%emt 0:00:50]} Nxd3 {[%emt 0:00:05]} 37. Re2 {[%emt 0:01:47]} Ra7 {[%emt 0:
00:00]} 38. Nd4 {[%emt 0:03:07]} Qb6 {[%emt 0:00:37]} 39. Nxb5 {[%emt 0:01:41]}
Qxb5 {[%emt 0:00:08]} 40. Rc3 {[%emt 0:01:08]} Re7 {[%emt 0:01:55]} 41. Qh8+ {
[%emt 0:31:12]} Kd7 {[%emt 0:30:07]} 42. Qd4 {[%emt 0:00:29]} Nxb2 {[%emt 0:00:
00]} 43. Ra3 {[%emt 0:00:00]} c3 {[%emt 0:00:00]} 44. Qa7+ {[%emt 0:00:00]} Kd8
{[%emt 0:00:00]} 45. Qa8+ {[%emt 0:00:00]} 1-0

[Event "44th Chess Olympiad Women 2022"]
[Site "Chennai"]
[Date "2022.07.29"]
[Round "1.43"]
[White "Radikovic, Anamarija"]
[Black "Cho, Hung-Ling"]
[Result "1-0"]
[WhiteElo "2099"]
[BlackElo "1576"]
[Annotator "NA"]
[PlyCount "39"]
[EventDate "2022.??.??"]
[TimeControl "60"]

1. e4 {[%emt 0:00:02]} e5 {[%emt 0:00:08]} 2. Nf3 {[%emt 0:00:06]} Nc6 {
[%emt 0:00:06]} 3. Bb5 {[%emt 0:00:03]} Nd4 {[%emt 0:00:29]} 4. Nxd4 {[%emt 0:
00:00]} exd4 {[%emt 0:00:06]} 5. O-O {[%emt 0:00:06]} c6 {[%emt 0:00:17]} 6.
Bc4 {[%emt 0:00:07]} Nf6 {[%emt 0:06:02]} 7. d3 {[%emt 0:00:21]} d5 {[%emt 0:
00:00]} 8. exd5 {[%emt 0:00:13]} Nxd5 {[%emt 0:00:18]} 9. Re1+ {[%emt 0:01:14]}
Be6 {[%emt 0:08:14]} 10. Qh5 {[%emt 0:03:00]} Qd6 {[%emt 0:13:15]} 11. Bg5 {
[%emt 0:09:09]} g6 {[%emt 0:14:49]} 12. Qh4 {[%emt 0:01:51]} Bg7 {[%emt 0:00:
00]} 13. Bxd5 {[%emt 0:01:41]} Qxd5 {[%emt 0:02:22]} 14. Bf6 {[%emt 0:00:12]}
O-O {[%emt 0:04:40]} 15. Nd2 {[%emt 0:01:56]} Bxf6 {[%emt 0:11:09]} 16. Qxf6 {
[%emt 0:00:06]} Rad8 {[%emt 0:00:34]} 17. Re5 {[%emt 0:02:37]} Qd7 {[%emt 0:00:
00]} 18. Ne4 {[%emt 0:01:59]} Qc7 {[%emt 0:06:50]} 19. Ng3 {[%emt 0:04:21]} Rd6
{[%emt 0:04:04]} 20. Nh5 {[%emt 0:00:31]} 1-0

[Event "44th Chess Olympiad Women 2022"]
[Site "Chennai"]
[Date "2022.07.29"]
[Round "1.43"]
[White "Tsai, Sophie Yi-Hsuan"]
[Black "Berke, Ana"]
[Result "1/2-1/2"]
[WhiteElo "1131"]
[BlackElo "2163"]
[Annotator "RC"]
[PlyCount "130"]
[EventDate "2022.??.??"]
[TimeControl "60"]

1. e4 {[%emt 0:00:04]} c5 {[%emt 0:00:06]} 2. Nf3 {[%emt 0:00:14]} d6 {[%emt 0:
00:00]} 3. d4 {[%emt 0:00:27]} cxd4 {[%emt 0:00:06]} 4. Nxd4 {[%emt 0:00:29]}
Nf6 {[%emt 0:00:03]} 5. Nc3 {[%emt 0:00:17]} Nc6 {[%emt 0:00:05]} 6. Bg5 {
[%emt 0:01:39]} e6 {[%emt 0:00:21]} 7. Be2 {[%emt 0:05:52]} a6 {[%emt 0:00:33]}
8. h3 {[%emt 0:19:34]} Bd7 {[%emt 0:00:43]} 9. g4 {[%emt 0:01:14]} Qa5 {
[%emt 0:06:46]} 10. Bxf6 {[%emt 0:01:10]} gxf6 {[%emt 0:05:59]} 11. Nb3 {
[%emt 0:08:14]} Qc7 {[%emt 0:03:09]} 12. Qd2 {[%emt 0:10:55]} h5 {[%emt 0:00:
00]} 13. O-O-O {[%emt 0:19:53]} h4 {[%emt 0:04:57]} 14. Kb1 {[%emt 0:01:02]}
O-O-O {[%emt 0:00:25]} 15. f4 {[%emt 0:00:35]} Kb8 {[%emt 0:00:53]} 16. Rhf1 {
[%emt 0:02:01]} Bc8 {[%emt 0:01:22]} 17. Qe3 {[%emt 0:02:38]} b5 {[%emt 0:00:
00]} 18. a3 {[%emt 0:01:23]} Qa7 {[%emt 0:06:53]} 19. Qxa7+ {[%emt 0:00:38]}
Kxa7 {[%emt 0:00:16]} 20. f5 {[%emt 0:00:29]} Be7 {[%emt 0:01:02]} 21. Nd4 {
[%emt 0:03:52]} Ne5 {[%emt 0:02:51]} 22. Na2 {[%emt 0:02:38]} Bd7 {[%emt 0:00:
00]} 23. Nb4 {[%emt 0:00:22]} Rb8 {[%emt 0:01:22]} 24. Nb3 {[%emt 0:03:32]}
Rhc8 {[%emt 0:05:56]} 25. Nd3 {[%emt 0:00:52]} Nc4 {[%emt 0:03:16]} 26. Rf3 {
[%emt 0:02:45]} Be8 {[%emt 0:01:36]} 27. fxe6 {[%emt 0:04:33]} fxe6 {[%emt 0:
00:00]} 28. Nd4 {[%emt 0:00:42]} Bd7 {[%emt 0:02:04]} 29. g5 {[%emt 0:01:13]}
fxg5 {[%emt 0:01:28]} 30. Rf7 {[%emt 0:00:11]} Re8 {[%emt 0:00:34]} 31. Bh5 {
[%emt 0:00:29]} e5 {[%emt 0:04:10]} 32. Nf5 {[%emt 0:01:10]} Bxf5 {[%emt 0:00:
00]} 33. exf5 {[%emt 0:00:06]} Ne3 {[%emt 0:03:56]} 34. Rg1 {[%emt 0:01:07]}
Kb6 {[%emt 0:04:27]} 35. f6 {[%emt 0:01:34]} Bd8 {[%emt 0:04:03]} 36. Rxg5 {
[%emt 0:02:23]} Nd5 {[%emt 0:01:16]} 37. Nb4 {[%emt 0:00:59]} Nxb4 {[%emt 0:00:
00]} 38. axb4 {[%emt 0:00:10]} e4 {[%emt 0:02:02]} 39. Rd7 {[%emt 0:01:18]} Rf8
{[%emt 0:06:48]} 40. Rxd6+ {[%emt 0:00:53]} Kc7 {[%emt 0:03:05]} 41. Rgd5 {
[%emt 0:30:18]} Rb7 {[%emt 0:39:49]} 42. Rxa6 {[%emt 0:01:03]} Rxf6 {[%emt 0:
00:00]} 43. Ra8 {[%emt 0:00:31]} Be7 {[%emt 0:00:48]} 44. Bg4 {[%emt 0:00:27]}
Bd6 {[%emt 0:02:30]} 45. Rc8+ {[%emt 0:00:33]} Kb6 {[%emt 0:03:30]} 46. Be2 {
[%emt 0:00:29]} Ka7 {[%emt 0:00:00]} 47. Bxb5 {[%emt 0:00:00]} Bxb4 {[%emt 0:
00:00]} 48. Bc6 {[%emt 0:00:00]} Re7 {[%emt 0:00:00]} 49. Rd7+ {[%emt 0:00:00]}
Rxd7 {[%emt 0:00:00]} 50. Bxd7 {[%emt 0:00:00]} e3 {[%emt 0:00:00]} 51. Re8 {
[%emt 0:00:00]} Rf1+ {[%emt 0:00:00]} 52. Ka2 {[%emt 0:00:00]} Bd2 {[%emt 0:00:
00]} 53. c3 {[%emt 0:00:00]} Rf2 {[%emt 0:00:00]} 54. Bg4 {[%emt 0:00:00]} Rg2
{[%emt 0:00:00]} 55. Re4 {[%emt 0:01:36]} Kb6 {[%emt 0:00:00]} 56. Kb3 {
[%emt 0:01:00]} Bc1 {[%emt 0:00:00]} 57. Kc4 {[%emt 0:01:54]} Rxb2 {[%emt 0:00:
00]} 58. Kd3 {[%emt 0:00:59]} Rg2 {[%emt 0:00:00]} 59. Bf3 {[%emt 0:00:59]} Rg3
{[%emt 0:00:00]} 60. Bg4 {[%emt 0:00:11]} Bd2 {[%emt 0:00:00]} 61. c4 {[%emt 0:
00:00]} Rg2 {[%emt 0:00:00]} 62. Be2 {[%emt 0:00:21]} Be1 {[%emt 0:04:40]} 63.
Rxe3 {[%emt 0:00:27]} Rg3 {[%emt 0:00:49]} 64. Rxg3 {[%emt 0:00:14]} Bxg3 {
[%emt 0:00:08]} 65. Kd4 {[%emt 0:00:15]} Kc7 {[%emt 0:00:08]} 1/2-1/2

[Event "44th Chess Olympiad Women 2022"]
[Site "Chennai"]
[Date "2022.07.29"]
[Round "1.44"]
[White "Ioannides Liu, Alice"]
[Black "Moaataz, Ayah"]
[Result "0-1"]
[WhiteElo "1292"]
[BlackElo "2119"]
[Annotator "NA"]
[PlyCount "50"]
[EventDate "2022.??.??"]
[TimeControl "60"]

1. Nf3 {[%emt 0:00:07]} d5 {[%emt 0:00:06]} 2. d4 {[%emt 0:00:56]} Nf6 {
[%emt 0:00:06]} 3. g3 {[%emt 0:00:18]} g6 {[%emt 0:00:27]} 4. Bg2 {[%emt 0:00:
00]} Bg7 {[%emt 0:00:06]} 5. O-O {[%emt 0:00:20]} O-O {[%emt 0:00:11]} 6. Bf4 {
[%emt 0:00:30]} Nbd7 {[%emt 0:01:23]} 7. c3 {[%emt 0:04:58]} c5 {[%emt 0:02:17]
} 8. dxc5 {[%emt 0:21:25]} Nxc5 {[%emt 0:01:20]} 9. Nbd2 {[%emt 0:01:18]} Re8 {
[%emt 0:07:04]} 10. Nb3 {[%emt 0:04:28]} Na4 {[%emt 0:01:03]} 11. Qc1 {[%emt 0:
00:00]} Bd7 {[%emt 0:02:50]} 12. Ne5 {[%emt 0:02:48]} e6 {[%emt 0:06:12]} 13.
Qd2 {[%emt 0:03:58]} Bb5 {[%emt 0:11:14]} 14. Nd4 {[%emt 0:03:32]} Ba6 {
[%emt 0:03:41]} 15. b4 {[%emt 0:05:19]} Nd7 {[%emt 0:06:08]} 16. Nxd7 {[%emt 0:
00:00]} Qxd7 {[%emt 0:00:04]} 17. Rab1 {[%emt 0:20:45]} Bc4 {[%emt 0:04:15]}
18. Bh6 {[%emt 0:05:19]} Bxh6 {[%emt 0:01:03]} 19. Qxh6 {[%emt 0:00:12]} Nxc3 {
[%emt 0:00:52]} 20. Rb2 {[%emt 0:01:30]} e5 {[%emt 0:01:16]} 21. Nf3 {[%emt 0:
00:00]} Nxe2+ {[%emt 0:00:26]} 22. Kh1 {[%emt 0:00:24]} Nd4 {[%emt 0:00:16]}
23. Nxd4 {[%emt 0:01:12]} Bxf1 {[%emt 0:01:04]} 24. Bxf1 {[%emt 0:00:47]} exd4
{[%emt 0:00:07]} 25. Rb1 {[%emt 0:01:07]} Qf5 {[%emt 0:00:27]} 0-1

[Event "44th Chess Olympiad Women 2022"]
[Site "Chennai"]
[Date "2022.07.29"]
[Round "1.44"]
[White "Mona, Khaled"]
[Black "Markidou, Christianna"]
[Result "1-0"]
[WhiteElo "2127"]
[BlackElo "1701"]
[Annotator "NA"]
[PlyCount "79"]
[EventDate "2022.??.??"]
[TimeControl "60"]

1. d4 {[%emt 0:00:13]} d5 {[%emt 0:00:12]} 2. Nf3 {[%emt 0:00:06]} e6 {[%emt 0:
00:00]} 3. e3 {[%emt 0:00:27]} Nf6 {[%emt 0:02:48]} 4. Bd3 {[%emt 0:00:27]} c6
{[%emt 0:04:41]} 5. Nbd2 {[%emt 0:00:37]} Nbd7 {[%emt 0:01:21]} 6. O-O {
[%emt 0:00:38]} Bd6 {[%emt 0:00:33]} 7. Qe2 {[%emt 0:00:49]} O-O {[%emt 0:00:
00]} 8. e4 {[%emt 0:01:21]} dxe4 {[%emt 0:10:05]} 9. Nxe4 {[%emt 0:00:51]} Nxe4
{[%emt 0:07:26]} 10. Qxe4 {[%emt 0:01:19]} Nf6 {[%emt 0:00:53]} 11. Qh4 {
[%emt 0:00:39]} h6 {[%emt 0:19:59]} 12. Ne5 {[%emt 0:12:24]} Nd7 {[%emt 0:00:
00]} 13. Qg3 {[%emt 0:02:55]} Qf6 {[%emt 0:02:15]} 14. Nxd7 {[%emt 0:10:04]}
Qxd4 {[%emt 0:05:24]} 15. c3 {[%emt 0:02:30]} Bxg3 {[%emt 0:02:45]} 16. cxd4 {
[%emt 0:00:22]} Bxf2+ {[%emt 0:02:06]} 17. Rxf2 {[%emt 0:00:21]} Bxd7 {[%emt 0:
00:00]} 18. b3 {[%emt 0:00:11]} Rad8 {[%emt 0:10:33]} 19. Ba3 {[%emt 0:00:50]}
Rfe8 {[%emt 0:00:34]} 20. Raf1 {[%emt 0:00:08]} f5 {[%emt 0:01:14]} 21. Re1 {
[%emt 0:00:07]} Bc8 {[%emt 0:04:16]} 22. Bb2 {[%emt 0:00:07]} c5 {[%emt 0:00:
00]} 23. Bb5 {[%emt 0:00:32]} Bd7 {[%emt 0:01:15]} 24. Bxd7 {[%emt 0:00:10]}
Rxd7 {[%emt 0:02:13]} 25. dxc5 {[%emt 0:00:08]} g6 {[%emt 0:00:22]} 26. Be5 {
[%emt 0:01:06]} Kf7 {[%emt 0:01:09]} 27. b4 {[%emt 0:00:51]} a6 {[%emt 0:00:28]
} 28. a4 {[%emt 0:00:15]} g5 {[%emt 0:01:04]} 29. b5 {[%emt 0:00:18]} axb5 {
[%emt 0:00:34]} 30. axb5 {[%emt 0:00:06]} Rc8 {[%emt 0:00:38]} 31. Rc2 {
[%emt 0:08:55]} Rd5 {[%emt 0:01:00]} 32. c6 {[%emt 0:03:12]} b6 {[%emt 0:00:27]
} 33. Ra2 {[%emt 0:02:47]} Rxb5 {[%emt 0:00:30]} 34. Ra7+ {[%emt 0:00:05]} Kg6
{[%emt 0:00:30]} 35. Rg7+ {[%emt 0:01:26]} Kh5 {[%emt 0:00:10]} 36. c7 {
[%emt 0:00:45]} Rc5 {[%emt 0:01:04]} 37. Rd7 {[%emt 0:01:19]} Kg6 {[%emt 0:00:
00]} 38. Rd8 {[%emt 0:00:20]} R8xc7 {[%emt 0:00:44]} 39. Bxc7 {[%emt 0:00:07]}
Rxc7 {[%emt 0:00:17]} 40. Rxe6+ {[%emt 0:00:07]} 1-0